[Event "*** SCC Grand Prix: Titled Tuesday Blitz"]
[Site "Chess.com"]
[Date "2020.07.07"]
[Round "6"]
[White "angryhorse9"]
[Black "poppy73"]
[Result "1-0"]
[WhiteElo "2404"]
[BlackElo "2217"]
[TimeControl "180+1"]
[EndTime "11:08:55 PDT"]
[Termination "angryhorse9 won on time"]

1. e4 {[%clk 0:03:00.9]} 1... c5 {[%clk 0:02:59.4]} 2. Nf3 {[%clk 0:03:01.4]}
2... d6 {[%clk 0:03:00]} 3. Bb5+ {[%clk 0:03:01.2]} 3... Nd7 {[%clk 0:02:58.3]}
4. d4 {[%clk 0:03:00.7]} 4... a6 {[%clk 0:02:54.1]} 5. Bxd7+ {[%clk 0:02:57.4]}
5... Bxd7 {[%clk 0:02:54.4]} 6. dxc5 {[%clk 0:02:55.2]} 6... Qa5+ {[%clk
0:02:49.3]} 7. Nc3 {[%clk 0:02:49.9]} 7... Qxc5 {[%clk 0:02:46.2]} 8. O-O {[%clk
0:02:49.8]} 8... Nf6 {[%clk 0:02:45.6]} 9. Be3 {[%clk 0:02:49.8]} 9... Qc7
{[%clk 0:02:45.3]} 10. Bd4 {[%clk 0:02:47.3]} 10... e5 {[%clk 0:02:43.1]} 11.
Be3 {[%clk 0:02:44.3]} 11... Bc6 {[%clk 0:02:43.2]} 12. Nd2 {[%clk 0:02:40.4]}
12... d5 {[%clk 0:02:37.3]} 13. exd5 {[%clk 0:02:35.8]} 13... Nxd5 {[%clk
0:02:38.2]} 14. Nxd5 {[%clk 0:02:35.7]} 14... Bxd5 {[%clk 0:02:38.2]} 15. Re1
{[%clk 0:02:24]} 15... Be7 {[%clk 0:02:37.7]} 16. Qg4 {[%clk 0:02:18.5]} 16...
O-O {[%clk 0:02:29.7]} 17. Bh6 {[%clk 0:02:02]} 17... Bf6 {[%clk 0:02:29.6]} 18.
c4 {[%clk 0:02:00.1]} 18... Be6 {[%clk 0:02:28.7]} 19. Qg3 {[%clk 0:02:00.6]}
19... Bf5 {[%clk 0:02:15.2]} 20. Ne4 {[%clk 0:01:59.1]} 20... Bxe4 {[%clk
0:02:13.5]} 21. Rxe4 {[%clk 0:02:00]} 21... Kh8 {[%clk 0:02:13.9]} 22. Qf3
{[%clk 0:01:31.5]} 22... Qc6 {[%clk 0:02:02.9]} 23. Bd2 {[%clk 0:01:25.1]} 23...
Rad8 {[%clk 0:01:54.2]} 24. Bc3 {[%clk 0:01:25]} 24... Rfe8 {[%clk 0:01:54.5]}
25. Rae1 {[%clk 0:01:21.5]} 25... Qc7 {[%clk 0:01:43.1]} 26. Qf5 {[%clk
0:01:12.6]} 26... Re6 {[%clk 0:01:35.3]} 27. h3 {[%clk 0:01:02.8]} 27... Rde8
{[%clk 0:01:35.1]} 28. Qf3 {[%clk 0:00:54]} 28... g6 {[%clk 0:01:27.6]} 29. b3
{[%clk 0:00:52.6]} 29... Bg7 {[%clk 0:01:27.4]} 30. R4e2 {[%clk 0:00:50.3]}
30... f5 {[%clk 0:01:21.4]} 31. Qe3 {[%clk 0:00:50.2]} 31... e4 {[%clk
0:01:19.6]} 32. Bxg7+ {[%clk 0:00:51.1]} 32... Qxg7 {[%clk 0:01:19.5]} 33. Rd1
{[%clk 0:00:51.7]} 33... Qe5 {[%clk 0:01:15.9]} 34. Rd5 {[%clk 0:00:46.7]} 34...
Qa1+ {[%clk 0:01:15]} 35. Kh2 {[%clk 0:00:46.7]} 35... Qf6 {[%clk 0:01:12.8]}
36. Qf4 {[%clk 0:00:43.9]} 36... Re5 {[%clk 0:01:02.9]} 37. Rxe5 {[%clk
0:00:38.9]} 37... Qxe5 {[%clk 0:01:03.1]} 38. Qxe5+ {[%clk 0:00:39]} 38... Rxe5
{[%clk 0:01:04]} 39. Rd2 {[%clk 0:00:39.9]} 39... Re7 {[%clk 0:01:00.9]} 40. Kg3
{[%clk 0:00:38.4]} 40... g5 {[%clk 0:00:56.4]} 41. h4 {[%clk 0:00:37.2]} 41...
h6 {[%clk 0:00:52.1]} 42. hxg5 {[%clk 0:00:29.2]} 42... hxg5 {[%clk 0:00:52]}
43. f3 {[%clk 0:00:28.2]} 43... e3 {[%clk 0:00:49.4]} 44. Re2 {[%clk 0:00:24.4]}
44... f4+ {[%clk 0:00:40]} 45. Kg4 {[%clk 0:00:24.5]} 45... Re5 {[%clk
0:00:31.4]} 46. g3 {[%clk 0:00:24.2]} 46... fxg3 {[%clk 0:00:29.6]} 47. Kxg3
{[%clk 0:00:25.1]} 47... Kg7 {[%clk 0:00:23.5]} 48. f4 {[%clk 0:00:25.4]} 48...
Re7 {[%clk 0:00:20]} 49. fxg5 {[%clk 0:00:24.4]} 49... Kg6 {[%clk 0:00:20]} 50.
Kf4 {[%clk 0:00:24.9]} 50... Rf7+ {[%clk 0:00:18.9]} 51. Kxe3 {[%clk 0:00:25.2]}
51... Kxg5 {[%clk 0:00:17.5]} 52. Kd4 {[%clk 0:00:25.3]} 52... Rd7+ {[%clk
0:00:16.8]} 53. Kc5 {[%clk 0:00:25.2]} 53... Kf5 {[%clk 0:00:17.4]} 54. Kb6
{[%clk 0:00:25.4]} 54... Kf6 {[%clk 0:00:17.6]} 55. c5 {[%clk 0:00:24.5]} 55...
Kf5 {[%clk 0:00:17.3]} 56. a4 {[%clk 0:00:19.6]} 56... Kf6 {[%clk 0:00:14.3]}
57. b4 {[%clk 0:00:17.7]} 57... Rd4 {[%clk 0:00:13.1]} 58. Rb2 {[%clk
0:00:14.2]} 58... Rd7 {[%clk 0:00:11.9]} 59. c6 {[%clk 0:00:13.9]} 59... bxc6
{[%clk 0:00:11.5]} 60. Kxc6 {[%clk 0:00:14.6]} 60... Re7 {[%clk 0:00:04.6]} 61.
Kb6 {[%clk 0:00:15.1]} 61... Re6+ {[%clk 0:00:03.8]} 62. Kb7 {[%clk 0:00:15.8]}
62... Ke7 {[%clk 0:00:04]} 63. Rc2 {[%clk 0:00:15.6]} 63... Kd7 {[%clk
0:00:03.6]} 64. Rc7+ {[%clk 0:00:15.6]} 64... Kd8 {[%clk 0:00:03.5]} 65. Rc6
{[%clk 0:00:16.2]} 65... Re4 {[%clk 0:00:03.5]} 66. Rb6 {[%clk 0:00:15.2]} 66...
a5 {[%clk 0:00:03.8]} 67. bxa5 {[%clk 0:00:12.9]} 67... Rxa4 {[%clk 0:00:03.9]}
68. a6 {[%clk 0:00:13.4]} 68... Rd4 {[%clk 0:00:02.7]} 69. a7 {[%clk 0:00:13.9]}
69... Rd7+ {[%clk 0:00:01.9]} 70. Ka6 {[%clk 0:00:14.3]} 1-0

[Event "*** SCC Grand Prix: Titled Tuesday Blitz"]
[Site "Chess.com"]
[Date "2020.07.07"]
[Round "6"]
[White "TamirNabaty"]
[Black "Orest_Vovk"]
[Result "1-0"]
[WhiteElo "2714"]
[BlackElo "2525"]
[TimeControl "180+1"]
[EndTime "11:11:50 PDT"]
[Termination "TamirNabaty won by resignation"]

1. Nf3 {[%clk 0:03:00.9]} 1... h6 {[%clk 0:02:59.6]} 2. g3 {[%clk 0:03:00.8]}
2... g5 {[%clk 0:02:59]} 3. Bg2 {[%clk 0:03:01.7]} 3... Bg7 {[%clk 0:02:58]} 4.
O-O {[%clk 0:03:01.6]} 4... c5 {[%clk 0:02:52.1]} 5. d4 {[%clk 0:02:58.6]} 5...
g4 {[%clk 0:02:47]} 6. Ne5 {[%clk 0:02:58]} 6... d6 {[%clk 0:02:45.1]} 7. Nd3
{[%clk 0:02:20.3]} 7... Bxd4 {[%clk 0:02:41.7]} 8. e4 {[%clk 0:02:18.6]} 8...
Nc6 {[%clk 0:02:39.1]} 9. c3 {[%clk 0:02:13.5]} 9... Bg7 {[%clk 0:02:36.7]} 10.
Na3 {[%clk 0:02:11.5]} 10... Nf6 {[%clk 0:02:34]} 11. Nc4 {[%clk 0:02:03.4]}
11... Be6 {[%clk 0:02:30.9]} 12. Ne3 {[%clk 0:01:58.8]} 12... Qd7 {[%clk
0:02:17]} 13. Nf4 {[%clk 0:01:53.3]} 13... Ne5 {[%clk 0:02:05.4]} 14. Nd3 {[%clk
0:01:26.7]} 14... Nxd3 {[%clk 0:02:01.3]} 15. Qxd3 {[%clk 0:01:27.6]} 15... h5
{[%clk 0:01:42.9]} 16. Nf5 {[%clk 0:01:21.8]} 16... Bxf5 {[%clk 0:01:03.2]} 17.
exf5 {[%clk 0:01:22.7]} 17... Bh6 {[%clk 0:00:56.2]} 18. Bxh6 {[%clk 0:01:14]}
18... Rxh6 {[%clk 0:00:57.1]} 19. Qe3 {[%clk 0:01:14]} 19... Rh8 {[%clk
0:00:55.2]} 20. Rfe1 {[%clk 0:01:13.5]} 20... O-O-O {[%clk 0:00:37]} 21. Qxe7
{[%clk 0:01:11.8]} 21... Qxe7 {[%clk 0:00:37.9]} 22. Rxe7 {[%clk 0:01:12]} 22...
Rd7 {[%clk 0:00:35.3]} 23. Rae1 {[%clk 0:01:07.4]} 23... Rhd8 {[%clk 0:00:28.8]}
24. R7e2 {[%clk 0:01:03.5]} 24... d5 {[%clk 0:00:25.8]} 25. Re5 {[%clk
0:00:59.6]} 25... Kc7 {[%clk 0:00:22.5]} 26. h3 {[%clk 0:00:58.9]} 26... gxh3
{[%clk 0:00:18.5]} 27. Bxh3 {[%clk 0:00:58.6]} 27... b6 {[%clk 0:00:18.1]} 28.
Bg2 {[%clk 0:00:58.5]} 28... d4 {[%clk 0:00:12.8]} 29. cxd4 {[%clk 0:00:53.8]}
29... cxd4 {[%clk 0:00:13.1]} 30. R5e2 {[%clk 0:00:39.5]} 30... d3 {[%clk
0:00:12.2]} 31. Rd2 {[%clk 0:00:39.8]} 31... Rd4 {[%clk 0:00:09.9]} 32. Bf3
{[%clk 0:00:39.7]} 32... R8d7 {[%clk 0:00:08.3]} 33. Rc1+ {[%clk 0:00:36.6]}
33... Kd6 {[%clk 0:00:07.6]} 34. Re1 {[%clk 0:00:20.2]} 34... Re7 {[%clk
0:00:06.6]} 35. Red1 {[%clk 0:00:20.5]} 35... Ke5 {[%clk 0:00:05]} 36. Rxd3
{[%clk 0:00:20.8]} 36... Rxd3 {[%clk 0:00:05.4]} 37. Rxd3 {[%clk 0:00:21.7]}
37... Kxf5 {[%clk 0:00:06]} 38. Kg2 {[%clk 0:00:20.7]} 38... Rc7 {[%clk
0:00:06]} 39. Rd8 {[%clk 0:00:20]} 39... Rc2 {[%clk 0:00:04.8]} 40. Ra8 {[%clk
0:00:20.2]} 40... Rxb2 {[%clk 0:00:04.6]} 41. Rxa7 {[%clk 0:00:20.5]} 41... Kg6
{[%clk 0:00:03.6]} 42. Kf1 {[%clk 0:00:15.7]} 42... Ng4 {[%clk 0:00:03.3]} 43.
Be2 {[%clk 0:00:16]} 43... Ne5 {[%clk 0:00:02.6]} 44. a4 {[%clk 0:00:14.8]}
44... f6 {[%clk 0:00:03.2]} 45. Rb7 {[%clk 0:00:14.3]} 45... Rb1+ {[%clk
0:00:03.5]} 46. Kg2 {[%clk 0:00:14.1]} 46... Rb2 {[%clk 0:00:04.1]} 47. Bd1
{[%clk 0:00:10.7]} 47... Ng4 {[%clk 0:00:03]} 48. Bxg4 {[%clk 0:00:09.8]} 48...
hxg4 {[%clk 0:00:03.9]} 49. a5 {[%clk 0:00:10.6]} 49... b5 {[%clk 0:00:04.4]}
50. a6 {[%clk 0:00:11.1]} 50... Ra2 {[%clk 0:00:04.8]} 51. a7 {[%clk 0:00:10.8]}
51... b4 {[%clk 0:00:05.1]} 52. Rxb4 {[%clk 0:00:10.8]} 52... Rxa7 {[%clk
0:00:05]} 53. Rxg4+ {[%clk 0:00:11.4]} 53... Kf5 {[%clk 0:00:05.5]} 54. Rb4
{[%clk 0:00:12.3]} 54... Kg6 {[%clk 0:00:06]} 55. Rf4 {[%clk 0:00:12.8]} 55...
Ra5 {[%clk 0:00:06.3]} 56. Rf3 {[%clk 0:00:13.7]} 56... Ra4 {[%clk 0:00:06.6]}
57. Re3 {[%clk 0:00:14.6]} 57... Rb4 {[%clk 0:00:06.7]} 58. Kf3 {[%clk
0:00:15.5]} 58... Ra4 {[%clk 0:00:06.9]} 59. Re4 {[%clk 0:00:16.1]} 59... Ra3+
{[%clk 0:00:07.3]} 60. Kf4 {[%clk 0:00:16.6]} 60... Ra1 {[%clk 0:00:08.2]} 61.
g4 {[%clk 0:00:16.2]} 61... Ra2 {[%clk 0:00:08.6]} 62. f3 {[%clk 0:00:16.5]}
62... Ra3 {[%clk 0:00:08.9]} 63. Rb4 {[%clk 0:00:16.4]} 63... Rc3 {[%clk
0:00:08.7]} 64. Rb6 {[%clk 0:00:16.6]} 64... Rc4+ {[%clk 0:00:08.8]} 65. Kg3
{[%clk 0:00:17.1]} 65... Rc3 {[%clk 0:00:09.1]} 66. Kf2 {[%clk 0:00:16.4]} 66...
Rc2+ {[%clk 0:00:09.3]} 67. Ke3 {[%clk 0:00:16.7]} 67... Rc3+ {[%clk 0:00:09.6]}
68. Kf4 {[%clk 0:00:16.9]} 68... Rc4+ {[%clk 0:00:09.6]} 69. Kg3 {[%clk
0:00:17.8]} 69... Rc3 {[%clk 0:00:09.9]} 70. Rb4 {[%clk 0:00:18]} 70... Ra3
{[%clk 0:00:09]} 71. Kf4 {[%clk 0:00:16.3]} 71... Rc3 {[%clk 0:00:09]} 72. Rd4
{[%clk 0:00:16.5]} 72... Ra3 {[%clk 0:00:08.5]} 73. Ke4 {[%clk 0:00:17]} 73...
Ra1 {[%clk 0:00:06.3]} 74. Rd6 {[%clk 0:00:16.4]} 74... Ra4+ {[%clk 0:00:05.9]}
75. Ke3 {[%clk 0:00:16.5]} 75... Ra3+ {[%clk 0:00:06.3]} 76. Kf2 {[%clk
0:00:16]} 76... Ra2+ {[%clk 0:00:06.7]} 77. Kg3 {[%clk 0:00:16.3]} 77... Ra3
{[%clk 0:00:07.2]} 78. Rd4 {[%clk 0:00:15.1]} 78... Rb3 {[%clk 0:00:07.4]} 79.
Re4 {[%clk 0:00:15.4]} 79... Ra3 {[%clk 0:00:07.2]} 80. Kf2 {[%clk 0:00:14.6]}
80... Ra2+ {[%clk 0:00:07.3]} 81. Re2 {[%clk 0:00:14.7]} 81... Ra3 {[%clk
0:00:07.2]} 82. f4 {[%clk 0:00:15.1]} 82... Rb3 {[%clk 0:00:07.3]} 83. Re3
{[%clk 0:00:15.4]} 83... Rb1 {[%clk 0:00:06.2]} 84. Kf3 {[%clk 0:00:15.5]} 84...
Rf1+ {[%clk 0:00:06]} 85. Kg3 {[%clk 0:00:15.8]} 85... Rg1+ {[%clk 0:00:06.1]}
86. Kh3 {[%clk 0:00:13.4]} 86... Rf1 {[%clk 0:00:06.2]} 87. Re4 {[%clk
0:00:13.1]} 87... Rf3+ {[%clk 0:00:05.4]} 88. Kg2 {[%clk 0:00:12.7]} 88... Ra3
{[%clk 0:00:04.8]} 89. Kf2 {[%clk 0:00:12.4]} 89... Ra2+ {[%clk 0:00:04.5]} 90.
Kf3 {[%clk 0:00:11.8]} 90... Ra3+ {[%clk 0:00:04.7]} 91. Re3 {[%clk 0:00:12.2]}
91... Ra1 {[%clk 0:00:04.8]} 92. Re6 {[%clk 0:00:12.2]} 92... Rf1+ {[%clk
0:00:04.8]} 93. Kg3 {[%clk 0:00:12.5]} 93... Rg1+ {[%clk 0:00:04.7]} 94. Kh3
{[%clk 0:00:13]} 94... Rf1 {[%clk 0:00:04.1]} 95. Re4 {[%clk 0:00:10.9]} 95...
Rf3+ {[%clk 0:00:02.7]} 96. Kg2 {[%clk 0:00:11.3]} 96... Ra3 {[%clk 0:00:03.6]}
97. Rb4 {[%clk 0:00:11.8]} 97... Ra2+ {[%clk 0:00:03.8]} 98. Kf3 {[%clk
0:00:12.2]} 98... Ra3+ {[%clk 0:00:04.6]} 99. Ke4 {[%clk 0:00:11.2]} 99... Ra2
{[%clk 0:00:03.8]} 100. Rb6 {[%clk 0:00:10.6]} 100... Ra4+ {[%clk 0:00:03.9]}
101. Ke3 {[%clk 0:00:10.7]} 101... Ra3+ {[%clk 0:00:04.3]} 102. Kf2 {[%clk
0:00:10.5]} 102... Ra4 {[%clk 0:00:04.4]} 103. Kg3 {[%clk 0:00:10.7]} 103...
Ra3+ {[%clk 0:00:04.8]} 104. Kh4 {[%clk 0:00:11.1]} 104... Ra4 {[%clk
0:00:05.1]} 105. f5+ {[%clk 0:00:11.4]} 105... Kg7 {[%clk 0:00:05.3]} 106. Kh5
{[%clk 0:00:11.9]} 106... Ra7 {[%clk 0:00:04.5]} 107. Rc6 {[%clk 0:00:11.4]}
107... Rd7 {[%clk 0:00:04.5]} 108. Ra6 {[%clk 0:00:11.1]} 108... Rc7 {[%clk
0:00:04.8]} 109. Kh4 {[%clk 0:00:11.2]} 109... Rb7 {[%clk 0:00:05]} 110. Kg3
{[%clk 0:00:11.2]} 110... Rb3+ {[%clk 0:00:04.8]} 111. Kh4 {[%clk 0:00:11.6]}
111... Rb7 {[%clk 0:00:04.7]} 112. Re6 {[%clk 0:00:11.9]} 112... Ra7 {[%clk
0:00:04.8]} 113. Kg3 {[%clk 0:00:12.4]} 113... Ra3+ {[%clk 0:00:04.8]} 114. Kf4
{[%clk 0:00:13]} 114... Ra4+ {[%clk 0:00:05.2]} 115. Re4 {[%clk 0:00:13.5]}
115... Ra7 {[%clk 0:00:05.4]} 116. Rd4 {[%clk 0:00:13.9]} 116... Rb7 {[%clk
0:00:05.6]} 117. Ke4 {[%clk 0:00:13.7]} 117... Re7+ {[%clk 0:00:05.6]} 118. Kd5
{[%clk 0:00:13.4]} 118... Kh6 {[%clk 0:00:05.8]} 119. Kd6 {[%clk 0:00:13.4]}
119... Re1 {[%clk 0:00:05.8]} 120. Kd5 {[%clk 0:00:13.6]} 120... Kg5 {[%clk
0:00:05.9]} 121. Kd6 {[%clk 0:00:13.7]} 121... Rg1 {[%clk 0:00:05.8]} 122. Ke6
{[%clk 0:00:14]} 122... Re1+ {[%clk 0:00:05.9]} 123. Kf7 {[%clk 0:00:14.2]}
123... Ra1 {[%clk 0:00:06.2]} 124. Rd7 {[%clk 0:00:13.1]} 124... Ra6 {[%clk
0:00:04.9]} 125. Rd4 {[%clk 0:00:12.1]} 125... Ra7+ {[%clk 0:00:04.2]} 126. Ke6
{[%clk 0:00:12]} 126... Ra6+ {[%clk 0:00:04.6]} 127. Kd5 {[%clk 0:00:12.3]}
127... Ra5+ {[%clk 0:00:04.8]} 128. Kc6 {[%clk 0:00:12.6]} 128... Ra6+ {[%clk
0:00:03.7]} 129. Kc7 {[%clk 0:00:12.6]} 129... Ra7+ {[%clk 0:00:03.4]} 130. Kd8
{[%clk 0:00:13]} 130... Ra1 {[%clk 0:00:04.3]} 131. Ke7 {[%clk 0:00:12.9]}
131... Ra7+ {[%clk 0:00:04.1]} 132. Ke6 {[%clk 0:00:13.2]} 132... Ra6+ {[%clk
0:00:04.5]} 133. Kd5 {[%clk 0:00:13.6]} 133... Ra5+ {[%clk 0:00:05]} 134. Kc6
{[%clk 0:00:14.1]} 134... Re5 {[%clk 0:00:05]} 135. Kd6 {[%clk 0:00:13.4]}
135... Ra5 {[%clk 0:00:04.9]} 136. Re4 {[%clk 0:00:13.7]} 136... Ra6+ {[%clk
0:00:04.8]} 137. Ke7 {[%clk 0:00:13.7]} 137... Ra7+ {[%clk 0:00:04.9]} 138. Kf8
{[%clk 0:00:14.1]} 138... Rb7 {[%clk 0:00:04.1]} 139. Re7 {[%clk 0:00:13.2]}
139... Rb8+ {[%clk 0:00:03.6]} 140. Kg7 {[%clk 0:00:13]} 140... Rb6 {[%clk
0:00:02.6]} 141. Kh7 {[%clk 0:00:07.7]} 141... Kxg4 {[%clk 0:00:02]} 142. Kg6
{[%clk 0:00:08.1]} 142... Kf4 {[%clk 0:00:01.3]} 143. Re6 {[%clk 0:00:08.2]}
143... Rb1 {[%clk 0:00:01.8]} 144. Ra6 {[%clk 0:00:05.6]} 144... Rg1+ {[%clk
0:00:02.7]} 145. Kxf6 {[%clk 0:00:05.6]} 145... Kg4 {[%clk 0:00:02.9]} 146. Ra4+
{[%clk 0:00:05.7]} 146... Kh5 {[%clk 0:00:03]} 147. Kf7 {[%clk 0:00:06.1]}
147... Rb1 {[%clk 0:00:02.6]} 148. Ra7 {[%clk 0:00:04.3]} 148... Rb6 {[%clk
0:00:01.9]} 149. f6 {[%clk 0:00:04.4]} 149... Kh6 {[%clk 0:00:02]} 150. Ke7
{[%clk 0:00:02.7]} 150... Rb1 {[%clk 0:00:01.6]} 151. f7 {[%clk 0:00:02.8]}
151... Re1+ {[%clk 0:00:02.5]} 152. Kf8 {[%clk 0:00:03.2]} 152... Rf1 {[%clk
0:00:02.6]} 153. Re7 {[%clk 0:00:03.5]} 153... Rb1 {[%clk 0:00:03.2]} 154. Kg8
{[%clk 0:00:03.1]} 154... Rg1+ {[%clk 0:00:02]} 155. Kh8 {[%clk 0:00:03.4]}
155... Ra1 {[%clk 0:00:02.9]} 156. Re6+ {[%clk 0:00:03.6]} 156... Kg5 {[%clk
0:00:02.8]} 157. f8=Q {[%clk 0:00:03.1]} 157... Ra8 {[%clk 0:00:03.7]} 158. Qg8+
{[%clk 0:00:02.4]} 158... Kf5 {[%clk 0:00:04.6]} 159. Qxa8 {[%clk 0:00:02.3]}
159... Kxe6 {[%clk 0:00:04.9]} 160. Qf8 {[%clk 0:00:03.2]} 1-0

[Event "*** SCC Grand Prix: Titled Tuesday Blitz"]
[Site "Chess.com"]
[Date "2020.07.07"]
[Round "7"]
[White "ChessArchitect64"]
[Black "vugarrasulov"]
[Result "0-1"]
[WhiteElo "1876"]
[BlackElo "2802"]
[TimeControl "180+1"]
[EndTime "11:13:24 PDT"]
[Termination "vugarrasulov won by checkmate"]

1. d4 {[%clk 0:03:00.9]} 1... Nf6 {[%clk 0:02:54.8]} 2. Nf3 {[%clk 0:03:00]}
2... e6 {[%clk 0:02:54.9]} 3. Bg5 {[%clk 0:02:59.9]} 3... c5 {[%clk 0:02:54.3]}
4. Bxf6 {[%clk 0:02:55.1]} 4... Qxf6 {[%clk 0:02:54.2]} 5. e3 {[%clk 0:02:55.3]}
5... d5 {[%clk 0:02:52]} 6. Bd3 {[%clk 0:02:53.5]} 6... Nc6 {[%clk 0:02:50.4]}
7. c3 {[%clk 0:02:53.4]} 7... Bd7 {[%clk 0:02:50]} 8. O-O {[%clk 0:02:53]} 8...
Bd6 {[%clk 0:02:49.4]} 9. Nbd2 {[%clk 0:02:50.9]} 9... cxd4 {[%clk 0:02:49.6]}
10. exd4 {[%clk 0:02:48]} 10... g5 {[%clk 0:02:49.8]} 11. Qe2 {[%clk 0:02:44.9]}
11... g4 {[%clk 0:02:49.5]} 12. Ne5 {[%clk 0:02:43.5]} 12... Nxe5 {[%clk
0:02:48.3]} 13. dxe5 {[%clk 0:02:42.6]} 13... Qxe5 {[%clk 0:02:49.2]} 14. Qxg4
{[%clk 0:02:33.5]} 14... Qxh2# {[%clk 0:02:48.8]} 0-1

[Event "*** SCC Grand Prix: Titled Tuesday Blitz"]
[Site "Chess.com"]
[Date "2020.07.07"]
[Round "7"]
[White "2346PL"]
[Black "GEKKESPONS"]
[Result "1-0"]
[WhiteElo "2416"]
[BlackElo "2532"]
[TimeControl "180+1"]
[EndTime "11:13:32 PDT"]
[Termination "2346PL won by resignation"]

1. d4 {[%clk 0:03:00.9]} 1... d5 {[%clk 0:02:59.3]} 2. Nf3 {[%clk 0:03:00.5]}
2... Nf6 {[%clk 0:02:58.7]} 3. c3 {[%clk 0:03:00.8]} 3... e6 {[%clk 0:02:52.4]}
4. Bg5 {[%clk 0:03:01.1]} 4... Be7 {[%clk 0:02:52]} 5. e3 {[%clk 0:03:01.4]}
5... Nbd7 {[%clk 0:02:50.2]} 6. Bd3 {[%clk 0:03:01.2]} 6... c5 {[%clk
0:02:50.1]} 7. Nbd2 {[%clk 0:03:00.9]} 7... O-O {[%clk 0:02:44.8]} 8. O-O {[%clk
0:03:00.7]} 8... b6 {[%clk 0:02:34]} 9. Qa4 {[%clk 0:03:00.1]} 9... Bb7 {[%clk
0:02:30.5]} 10. Ne5 {[%clk 0:03:00]} 10... Nxe5 {[%clk 0:02:28.6]} 11. dxe5
{[%clk 0:03:00.2]} 11... Nd7 {[%clk 0:02:29.2]} 12. Qh4 {[%clk 0:03:00.3]} 1-0

[Event "*** SCC Grand Prix: Titled Tuesday Blitz"]
[Site "Chess.com"]
[Date "2020.07.07"]
[Round "7"]
[White "volkanyirik"]
[Black "KingCrusher275"]
[Result "0-1"]
[WhiteElo "2241"]
[BlackElo "2427"]
[TimeControl "180+1"]
[EndTime "11:13:56 PDT"]
[Termination "KingCrusher275 won by resignation"]

1. e4 {[%clk 0:03:00.9]} 1... c5 {[%clk 0:02:59.7]} 2. Nc3 {[%clk 0:03:01.8]}
2... e6 {[%clk 0:02:59.7]} 3. Bc4 {[%clk 0:03:01.1]} 3... a6 {[%clk 0:02:58.7]}
4. a4 {[%clk 0:03:01.6]} 4... Nc6 {[%clk 0:02:56.2]} 5. d3 {[%clk 0:03:01.8]}
5... Nf6 {[%clk 0:02:55.6]} 6. Ba2 {[%clk 0:03:00]} 6... d5 {[%clk 0:02:37.4]}
7. exd5 {[%clk 0:02:59.2]} 7... exd5 {[%clk 0:02:36.2]} 8. Nge2 {[%clk
0:03:00.1]} 8... d4 {[%clk 0:02:34.2]} 9. Ne4 {[%clk 0:02:59.2]} 9... Nxe4
{[%clk 0:02:33.9]} 10. dxe4 {[%clk 0:03:00.1]} 10... Qh4 {[%clk 0:02:28.8]} 11.
Ng3 {[%clk 0:02:58.1]} 11... Bd6 {[%clk 0:02:26.4]} 12. O-O {[%clk 0:02:57.5]}
12... O-O {[%clk 0:02:24.5]} 13. f4 {[%clk 0:02:57.6]} 13... Bg4 {[%clk
0:02:21.9]} 14. Qe1 {[%clk 0:02:55.9]} 14... Nb4 {[%clk 0:02:19.7]} 15. Bb3
{[%clk 0:02:54.9]} 15... c4 {[%clk 0:02:17.3]} 16. c3 {[%clk 0:02:49.3]} 16...
Nd3 {[%clk 0:02:13.8]} 0-1

[Event "*** SCC Grand Prix: Titled Tuesday Blitz"]
[Site "Chess.com"]
[Date "2020.07.07"]
[Round "7"]
[White "kingofkolkata"]
[Black "Fusikk"]
[Result "1-0"]
[WhiteElo "2421"]
[BlackElo "2537"]
[TimeControl "180+1"]
[EndTime "11:14:04 PDT"]
[Termination "kingofkolkata won by resignation"]

1. d4 {[%clk 0:03:00.9]} 1... Nf6 {[%clk 0:02:57.8]} 2. c4 {[%clk 0:03:01.8]}
2... e6 {[%clk 0:02:57.7]} 3. g3 {[%clk 0:03:01]} 3... d5 {[%clk 0:02:52.2]} 4.
Nf3 {[%clk 0:03:00.4]} 4... c5 {[%clk 0:02:51.3]} 5. cxd5 {[%clk 0:03:00.1]}
5... exd5 {[%clk 0:02:50.3]} 6. Bg2 {[%clk 0:03:00]} 6... Nc6 {[%clk 0:02:47.3]}
7. Nc3 {[%clk 0:03:00.3]} 7... cxd4 {[%clk 0:02:46.6]} 8. Nxd4 {[%clk
0:03:00.2]} 8... Bc5 {[%clk 0:02:46.9]} 9. Be3 {[%clk 0:02:48.3]} 9... Ng4
{[%clk 0:02:08.6]} 10. Nxc6 {[%clk 0:02:40.7]} 10... Nxe3 {[%clk 0:02:07.1]} 11.
Nxd8 {[%clk 0:02:40.7]} 11... Nxd1 {[%clk 0:02:07.1]} 12. Rxd1 {[%clk
0:02:39.2]} 12... Kxd8 {[%clk 0:02:05.3]} 13. Rxd5+ {[%clk 0:02:39.2]} 1-0

[Event "*** SCC Grand Prix: Titled Tuesday Blitz"]
[Site "Chess.com"]
[Date "2020.07.07"]
[Round "7"]
[White "Th3_Hound"]
[Black "Harsha_Bharathakoti"]
[Result "0-1"]
[WhiteElo "2526"]
[BlackElo "2783"]
[TimeControl "180+1"]
[EndTime "11:14:50 PDT"]
[Termination "Harsha_Bharathakoti won by resignation"]

1. e4 {[%clk 0:03:00.9]} 1... c5 {[%clk 0:03:00.2]} 2. Nf3 {[%clk 0:03:00.9]}
2... d6 {[%clk 0:03:01.1]} 3. d4 {[%clk 0:03:01.1]} 3... cxd4 {[%clk 0:03:02]}
4. Nxd4 {[%clk 0:03:01.7]} 4... Nf6 {[%clk 0:03:02.6]} 5. Nc3 {[%clk 0:03:02.2]}
5... a6 {[%clk 0:03:03.2]} 6. Be3 {[%clk 0:03:02.3]} 6... e5 {[%clk 0:03:03.4]}
7. Nb3 {[%clk 0:03:01.9]} 7... Be6 {[%clk 0:03:03.8]} 8. f3 {[%clk 0:03:01.7]}
8... h5 {[%clk 0:03:04.4]} 9. Nd5 {[%clk 0:03:00.4]} 9... Bxd5 {[%clk
0:03:03.2]} 10. exd5 {[%clk 0:03:01.3]} 10... Nbd7 {[%clk 0:03:02]} 11. Qd2
{[%clk 0:03:00.5]} 11... Rc8 {[%clk 0:02:51.2]} 12. c4 {[%clk 0:02:54.8]} 12...
g6 {[%clk 0:02:44]} 13. Be2 {[%clk 0:02:54.4]} 13... Bg7 {[%clk 0:02:42.1]} 14.
Rc1 {[%clk 0:02:53.7]} 14... O-O {[%clk 0:02:42.8]} 15. O-O {[%clk 0:02:53.4]}
15... Re8 {[%clk 0:02:37.7]} 16. h3 {[%clk 0:02:52.7]} 16... b6 {[%clk
0:02:32.9]} 17. a4 {[%clk 0:02:28.3]} 17... a5 {[%clk 0:02:32.8]} 18. Na1 {[%clk
0:02:27.7]} 18... Nc5 {[%clk 0:02:32.7]} 19. Bxc5 {[%clk 0:02:23.4]} 19... bxc5
{[%clk 0:02:23.3]} 20. Nb3 {[%clk 0:02:19.3]} 20... Ra8 {[%clk 0:02:20.7]} 21.
Na1 {[%clk 0:02:10.7]} 21... h4 {[%clk 0:02:19.8]} 22. Nc2 {[%clk 0:02:10.4]}
22... Nh5 {[%clk 0:02:18.6]} 23. Na3 {[%clk 0:02:10.1]} 23... Nf4 {[%clk
0:02:17.7]} 24. Rfe1 {[%clk 0:02:10.5]} 24... Qg5 {[%clk 0:02:16.8]} 0-1